bitfinex-derivatives/quotes_BTCF0:USTF0_20250422
["timestamp","ask_amount","ask_price","bid_price","bid_amount"]
[1745342000251,0.002,90926.0,90925.0,0.16083844]
[1745342000758,0.002,90926.0,90925.0,0.051]
[1745342001355,0.07421345,90926.0,90925.0,0.03175348]
[1745342001950,0.30141345,90926.0,90925.0,0.03175348]
[1745342002555,0.30041345,90926.0,90925.0,0.03175348]
[1745342002756,0.30141345,90926.0,90925.0,0.03675348]
[1745342004950,0.30041345,90926.0,90925.0,0.03075348]
[1745342005159,0.30141345,90926.0,90925.0,0.03675348]
[1745342007557,0.2292,90926.0,90925.0,0.03675348]
[1745342008063,0.2292,90926.0,90925.0,0.02035621]
[1745342008858,0.2292,90926.0,90925.0,0.00660771]
[1745342010160,0.2292,90926.0,90921.0,0.10486022]
[1745342010469,0.2292,90926.0,90922.0,0.1117]
[1745342010668,0.07221345,90925.0,90922.0,0.03]
[1745342011061,0.29991345,90924.0,90922.0,0.03]
[1745342011261,0.2277,90924.0,90922.0,0.03]
[1745342011564,0.18213935,90923.0,90922.0,0.03]
[1745342011760,0.07221345,90923.0,90921.0,0.001]
[1745342012068,0.2826626,90924.0,90921.0,0.001]
[1745342012069,0.30551345,90922.0,90921.0,0.001]
[1745342012363,0.30551345,90922.0,90919.0,0.37650206]
[1745342012567,0.07221345,90921.0,90920.0,0.1117]
[1745342013061,0.30551345,90921.0,90919.0,0.37650206]
[1745342013268,0.07221345,90920.0,90919.0,0.37650206]
[1745342013670,0.30251345,90920.0,90919.0,0.37650206]
[1745342014061,0.30251345,90920.0,90919.0,0.38650206]
[1745342014464,0.30251345,90920.0,90919.0,0.01]
[1745342014667,0.30451345,90920.0,90919.0,0.011]
[1745342014859,0.30075858,90920.0,90919.0,0.011]
[1745342015059,0.29786858,90920.0,90919.0,0.011]
[1745342015566,0.1087,90927.0,90919.0,0.011]
[1745342015757,0.1087,90927.0,90925.0,0.3608]
[1745342015758,0.08256,90927.0,90925.0,0.3608]
[1745342015960,0.08256,90927.0,90926.0,0.20210443]
[1745342016162,0.08256,90927.0,90926.0,0.22010443]
[1745342016965,0.08256,90927.0,90926.0,0.21910443]
[1745342017563,0.08256,90927.0,90926.0,0.02]
[1745342017761,0.08356,90927.0,90926.0,0.01]
[1745342018267,0.08456,90927.0,90926.0,0.013]
[1745342018567,0.08456,90927.0,90926.0,0.012]
[1745342018775,0.08456,90927.0,90926.0,0.015]
[1745342019066,0.08456,90927.0,90891.0,0.3608]
[1745342019267,0.3608,90915.0,90907.0,0.36216463]
[1745342019567,0.3481,90914.0,90907.0,0.43216463]
[1745342020178,0.3481,90914.0,90908.0,0.1175]
[1745342020358,0.1099429,90909.0,90908.0,0.03]
[1745342020965,0.08256,90911.0,90907.0,0.00336463]
[1745342020966,0.1099441,90908.0,90907.0,0.00336463]
[1745342021159,0.3349418,90910.0,90907.0,0.00336463]
[1745342021368,0.225,90910.0,90907.0,0.00336463]
[1745342021563,0.001,90909.0,90908.0,0.002]
[1745342022067,0.226,90909.0,90907.0,0.00136463]
[1745342022273,0.225,90909.0,90907.0,0.00236463]
[1745342022972,0.1099477,90905.0,90902.0,0.000165]
[1745342023171,0.4707477,90905.0,90902.0,0.000165]
[1745342023367,0.3608,90905.0,90902.0,0.000165]
[1745342023768,0.3608,90905.0,90898.0,0.03363969]
[1745342023971,0.2321,90904.0,90899.0,0.20919431]
[1745342024566,0.2321,90904.0,90899.0,0.09059431]
[1745342025075,0.2351,90904.0,90899.0,0.09059431]
[1745342025282,0.2391,90904.0,90899.0,0.09059431]
[1745342025468,0.2391,90904.0,90900.0,0.1186]
[1745342025878,0.08256,90903.0,90900.0,0.1186]
[1745342026279,0.2357,90902.0,90900.0,0.1186]
[1745342026473,0.08256,90901.0,90900.0,0.1186]
[1745342026876,0.43316,90901.0,90900.0,0.1186]
[1745342027178,0.43316,90901.0,90900.0,0.10934602]
[1745342028177,0.20556,90901.0,90900.0,0.10934602]
[1745342028374,0.08256,90906.0,90900.0,0.10934602]
[1745342028876,0.004,90901.0,90900.0,0.10934602]
[1745342029271,0.1179,90905.0,90900.0,0.10934602]
[1745342029470,0.003,90901.0,90900.0,0.10934602]
[1745342029772,0.005,90901.0,90900.0,0.05598763]
[1745342030379,0.003,90901.0,90900.0,0.05598763]
[1745342030776,0.1131,90904.0,90900.0,0.05598763]
[1745342031279,0.001,90901.0,90900.0,0.05598763]
[1745342031474,0.002,90901.0,90900.0,0.05698763]
[1745342031874,0.001,90901.0,90900.0,0.05598763]
[1745342032079,0.001,90901.0,90900.0,0.41678763]
[1745342032483,0.001,90901.0,90900.0,0.05698763]
[1745342032780,0.001,90901.0,90900.0,0.05798763]
[1745342033280,0.001,90901.0,90900.0,0.05698763]
[1745342033581,0.002,90901.0,90900.0,0.41978763]
[1745342033880,0.001,90901.0,90900.0,0.41878763]
[1745342034182,0.002,90901.0,90900.0,0.42078763]
[1745342034482,0.0549669,90917.0,90900.0,0.42078763]
[1745342034483,0.03209,90909.0,90900.0,0.42078763]
[1745342034680,0.03209,90909.0,90901.0,0.37650206]
[1745342034979,0.03209,90909.0,90908.0,0.3608]
[1745342035193,0.03209,90909.0,90908.0,0.4008]
[1745342035478,0.03209,90909.0,90908.0,0.04]
[1745342035678,0.03209,90909.0,90908.0,0.4008]
[1745342035881,0.03209,90909.0,90908.0,0.04]
[1745342036673,0.03209,90909.0,90908.0,0.4008]
[1745342036879,0.03409,90909.0,90908.0,0.4018]
[1745342037077,0.002,90909.0,90908.0,0.4018]
[1745342037279,0.05039,90916.0,90908.0,0.4018]
[1745342037480,0.15979,90916.0,90908.0,0.4018]
[1745342037674,0.15979,90916.0,90909.0,0.2313]
[1745342037874,0.15979,90916.0,90909.0,0.2613]
[1745342038577,0.15979,90916.0,90909.0,0.1435]
[1745342039973,0.15979,90916.0,90909.0,0.12974952]
[1745342040175,0.16079,90916.0,90909.0,0.032]
[1745342040380,0.1134,90915.0,90909.0,0.032]
[1745342040986,0.1189,90914.0,90909.0,0.032]
[1745342041280,0.2353,90914.0,90909.0,0.033]
[1745342041485,0.1134,90913.0,90909.0,0.033]
[1745342041684,0.1134,90913.0,90909.0,0.032]
[1745342041880,0.1189,90912.0,90909.0,0.034]
[1745342042279,0.112,90911.0,90909.0,0.034]
[1745342042481,0.112,90911.0,90909.0,0.032]
[1745342042694,0.1189,90910.0,90909.0,0.035]
[1745342043183,0.1189,90910.0,90909.0,0.032]
[1745342043384,0.1189,90910.0,90909.0,0.036]
[1745342043885,0.1199,90910.0,90909.0,0.037]
[1745342044285,0.1189,90910.0,90909.0,0.036]
[1745342044878,0.1189,90910.0,90909.0,0.006]
[1745342045382,0.1189,90910.0,90909.0,0.124]
[1745342045893,0.1189,90910.0,90909.0,0.118]
[1745342046087,0.1209,90910.0,90909.0,0.005]
[1745342046687,0.4807,90910.0,90909.0,0.121]
[1745342046888,0.4817,90910.0,90909.0,0.125]
[1745342047088,0.4807,90910.0,90909.0,0.122]
[1745342047288,0.4817,90910.0,90909.0,0.125]
[1745342047490,0.4817,90910.0,90909.0,0.09859628]
[1745342047694,0.4817,90910.0,90909.0,0.10859628]
[1745342047993,0.4807,90910.0,90909.0,0.10559628]
[1745342048388,0.4807,90910.0,90909.0,0.06599184]
[1745342048583,0.4807,90910.0,90909.0,0.014]
[1745342049191,0.4807,90910.0,90909.0,0.004]
[1745342049396,0.4807,90910.0,90909.0,0.024]
[1745342049601,0.4807,90910.0,90909.0,0.01626709]
[1745342050095,0.4807,90910.0,90909.0,0.01926709]
[1745342050395,0.4817,90910.0,90900.0,0.20983789]
[1745342050599,0.1168,90909.0,90900.0,0.22983789]
[1745342050891,0.1168,90909.0,90900.0,0.02]
[1745342051098,0.1128,90908.0,90900.0,0.02]
[1745342051489,0.113,90907.0,90900.0,0.02]
[1745342051690,0.113,90907.0,90901.0,0.1108]
[1745342051890,0.1128,90906.0,90901.0,0.1408]
[1745342052591,0.113,90905.0,90901.0,0.1408]
[1745342052986,0.1195,90904.0,90901.0,0.1408]
[1745342053300,0.1195,90904.0,90901.0,0.1418]
[1745342053487,0.1195,90904.0,90902.0,0.2331]
[1745342053691,0.1195,90904.0,90902.0,0.2531]
[1745342053895,0.1195,90904.0,90903.0,0.117]
[1745342054090,0.1195,90904.0,90903.0,0.137]
[1745342054298,0.1245,90904.0,90903.0,0.2563]
[1745342055701,0.1205,90904.0,90903.0,0.2563]
[1745342055905,0.1215,90904.0,90903.0,0.2563]
[1745342056207,0.1205,90904.0,90903.0,0.2563]
[1745342056405,0.1215,90904.0,90903.0,0.2563]
[1745342056793,0.1215,90904.0,90903.0,0.22989665]
[1745342057191,0.1205,90904.0,90903.0,0.11059665]
[1745342057398,0.1235,90904.0,90903.0,0.11059665]
[1745342059196,0.1235,90904.0,90903.0,0.11159665]
[1745342059708,0.1205,90904.0,90903.0,0.11159665]
[1745342059999,0.1225,90904.0,90903.0,0.11159665]
[1745342060392,0.1225,90904.0,90903.0,0.09784491]
[1745342060592,0.1215,90904.0,90903.0,0.09684491]
[1745342060800,0.1225,90904.0,90903.0,0.09784491]
[1745342061301,0.1225,90904.0,90903.0,0.021]
[1745342062099,0.1225,90904.0,90903.0,0.02]
[1745342062302,0.1205,90904.0,90903.0,0.021]
[1745342062599,0.1225,90904.0,90903.0,0.021]
[1745342062803,0.1235,90904.0,90903.0,0.021]
[1745342062998,0.1235,90904.0,90903.0,0.00961768]
[1745342063204,0.1215,90904.0,90903.0,0.00861768]
[1745342064105,0.1235,90904.0,90903.0,0.00861768]
[1745342064303,0.1235,90904.0,90880.0,0.20983789]
[1745342064504,0.3608,90894.0,90891.0,0.1191]
[1745342064706,0.3608,90894.0,90891.0,0.1991]
[1745342064707,0.4392,90893.0,90891.0,0.1991]
[1745342065903,0.4402,90893.0,90891.0,0.2011]
[1745342066510,0.4412,90893.0,90891.0,0.2011]
[1745342066994,0.15863948,90893.0,90892.0,0.1195]
[1745342067199,0.0844,90893.0,90892.0,0.1995]
[1745342067499,0.0844,90893.0,90892.0,0.3141]
[1745342068505,0.0834,90893.0,90892.0,0.3141]
[1745342068703,0.0844,90893.0,90892.0,0.3141]
[1745342069111,0.0834,90893.0,90892.0,0.3141]
[1745342069406,0.03739052,90893.0,90892.0,0.6769]
[1745342070009,0.03639052,90893.0,90892.0,0.3161]
[1745342070310,0.03739052,90893.0,90892.0,0.3161]
[1745342070510,0.04567994,90893.0,90892.0,0.3161]
[1745342072107,0.04467994,90893.0,90892.0,0.3161]
[1745342072308,0.04567994,90893.0,90892.0,0.3161]
[1745342073398,0.04467994,90893.0,90892.0,0.3141]
[1745342073600,0.04567994,90893.0,90892.0,0.3161]
[1745342073812,0.04567994,90893.0,90892.0,0.30234639]
[1745342074204,0.04567994,90893.0,90892.0,0.27593952]
[1745342074611,0.01028942,90893.0,90892.0,0.27593952]
[1745342075312,0.0824,90901.0,90892.0,0.74675952]
[1745342075513,0.001,90893.0,90892.0,0.63673952]
[1745342075710,0.001,90893.0,90892.0,0.74675952]
[1745342075913,0.09052437,90901.0,90892.0,0.74675952]
[1745342076214,0.001,90893.0,90892.0,0.63673952]
[1745342076417,0.002,90893.0,90892.0,0.63673952]
[1745342076713,0.002,90893.0,90892.0,0.74675952]
[1745342077008,0.002,90893.0,90892.0,0.63673952]
[1745342077210,0.002,90893.0,90892.0,0.74675952]
[1745342077409,0.1171,90906.0,90892.0,0.74675952]
[1745342077610,0.00839841,90906.0,90892.0,0.63673952]
[1745342077807,0.1189,90907.0,90892.0,0.63673952]
[1745342078409,0.002,90901.0,90892.0,0.63673952]
[1745342078911,0.002,90901.0,90893.0,0.37650206]
[1745342079208,0.1219,90907.0,90893.0,0.50650206]
[1745342079413,0.1219,90907.0,90894.0,0.115]
[1745342079609,0.001,90901.0,90894.0,0.235]
[1745342080009,0.1175,90906.0,90894.0,0.235]
[1745342080217,0.001,90901.0,90894.0,0.235]
[1745342080412,0.001,90901.0,90894.0,0.21574763]
[1745342081110,0.002,90901.0,90894.0,0.21574763]
[1745342081812,0.1166,90900.0,90894.0,0.21674763]
[1745342082013,0.001,90901.0,90894.0,0.21774763]
[1745342082220,0.001,90901.0,90894.0,0.19034421]
[1745342082415,0.002,90901.0,90894.0,0.19234421]
[1745342082809,0.1166,90905.0,90894.0,0.18934421]
[1745342083015,0.002,90900.0,90894.0,0.19334421]
[1745342083413,0.001,90900.0,90894.0,0.19234421]
[1745342084415,0.001,90900.0,90894.0,0.17859243]
[1745342084611,0.001,90900.0,90894.0,0.13898738]
[1745342084812,0.001,90901.0,90895.0,0.37650206]
[1745342085018,0.002,90901.0,90900.0,0.3608]
[1745342085213,0.00839841,90906.0,90900.0,0.4508]
[1745342085520,0.001,90905.0,90901.0,0.1126]
[1745342085724,0.001,90905.0,90901.0,0.1926]
[1745342085926,0.1111,90905.0,90901.0,0.1926]
[1745342086220,0.1101,90905.0,90901.0,0.1926]
[1745342086721,0.1111,90905.0,90901.0,0.1966]
[1745342086918,0.2249,90905.0,90901.0,0.1966]
[1745342088020,0.2259,90905.0,90901.0,0.1976]
[1745342088522,0.1121,90905.0,90901.0,0.1976]
[1745342088724,0.002,90905.0,90901.0,0.1976]
[1745342090620,0.002,90905.0,90902.0,0.37650206]
[1745342090827,0.001,90905.0,90902.0,0.44650206]
[1745342091018,0.002,90905.0,90903.0,0.113]
[1745342091213,0.002,90905.0,90903.0,0.183]
[1745342091420,0.1149,90905.0,90903.0,0.183]
[1745342091612,0.1139,90905.0,90903.0,0.183]
[1745342091816,0.1149,90905.0,90903.0,0.183]
[1745342092121,0.3608,90904.0,90903.0,0.183]
[1745342092311,0.587,90904.0,90903.0,0.07]
[1745342092512,0.587,90904.0,90903.0,0.077]
[1745342092713,0.2262,90904.0,90903.0,0.077]
[1745342093115,0.2262,90904.0,90903.0,0.193]
[1745342093319,0.2262,90904.0,90903.0,0.188]
[1745342093522,0.2272,90904.0,90903.0,0.192]
[1745342094225,0.2282,90904.0,90903.0,0.192]
[1745342095122,0.2282,90904.0,90903.0,0.06224741]
[1745342096221,0.3428,90904.0,90903.0,0.06224741]
[1745342096722,0.3428,90904.0,90903.0,0.17424741]
[1745342097523,0.3428,90904.0,90903.0,0.06224741]
[1745342099218,0.8428,90904.0,90903.0,0.06224741]
[1745342099826,0.8428,90904.0,90903.0,0.04299377]
[1745342101331,0.8428,90904.0,90889.0,0.36960552]
[1745342101332,1.202808,90904.0,90889.0,0.36960552]
[1745342101525,0.3608,90894.0,90889.0,0.42960552]
[1745342101726,0.3381,90893.0,90889.0,0.47134263]
[1745342102528,0.3381,90893.0,90889.0,0.10173711]
[1745342102741,0.3391,90893.0,90889.0,0.10773711]
[1745342102929,0.5,90891.0,90889.0,0.10773711]
[1745342103126,0.30638,90890.0,90889.0,0.10773711]
[1745342103322,0.30638,90890.0,90889.0,0.10473711]
[1745342104833,0.30638,90890.0,90889.0,0.10173711]
[1745342105135,0.80738,90890.0,90889.0,0.08798292]
[1745342105436,0.80838,90890.0,90889.0,0.08798292]
[1745342106736,0.80738,90890.0,90889.0,0.06157487]
[1745342106939,0.80838,90890.0,90889.0,0.06257487]
[1745342107531,0.80738,90890.0,90889.0,0.06157487]
[1745342107726,0.80838,90890.0,90889.0,0.06257487]
[1745342107925,0.80738,90890.0,90889.0,0.04331901]
[1745342108131,0.80838,90890.0,90889.0,0.04431901]
[1745342108331,0.80738,90890.0,90889.0,0.04331901]
[1745342108535,0.80838,90890.0,90889.0,0.04431901]
[1745342110244,0.502,90890.0,90889.0,0.40511901]
[1745342110436,0.502,90890.0,90889.0,0.51514301]
[1745342110638,0.502,90890.0,90889.0,0.63304301]
[1745342110828,0.44698354,90890.0,90889.0,0.74724301]
[1745342111139,0.437011,90890.0,90889.0,0.74724301]
[1745342111342,0.426211,90890.0,90889.0,0.74724301]
[1745342111538,0.37119454,90890.0,90889.0,0.74724301]
[1745342112334,0.31618454,90890.0,90889.0,0.74724301]
[1745342112530,0.31618454,90890.0,90889.0,0.63721901]
[1745342115742,0.31618454,90890.0,90889.0,0.65346518]
[1745342115943,0.26148943,90890.0,90889.0,0.65346518]
[1745342121149,0.15201943,90890.0,90889.0,0.65346518]
[1745342122243,0.15201943,90890.0,90889.0,0.61385424]
[1745342122447,0.15201943,90890.0,90889.0,0.2631]
[1745342122649,0.51281943,90890.0,90889.0,0.2631]
[1745342122848,0.56780293,90890.0,90883.0,0.000165]
[1745342123047,0.2191,90889.0,90883.0,0.000165]
[1745342123242,0.2191,90889.0,90883.0,0.04145379]
[1745342123650,0.3290676,90889.0,90883.0,0.04145379]
[1745342123849,0.15001,90886.0,90883.0,0.01504293]
[1745342124049,0.42476,90885.0,90878.0,0.1199]
[1745342124254,0.3608,90880.0,90878.0,0.1199]
[1745342124545,0.2257,90879.0,90878.0,0.16144451]
[1745342124750,0.4457152,90879.0,90878.0,0.02625651]
[1745342124957,0.4457152,90879.0,90855.0,0.3608]
[1745342124958,0.1099804,90878.0,90873.0,0.04143132]
[1745342125144,0.10999,90870.0,90869.0,0.000165]
[1745342125336,0.47079,90870.0,90869.0,0.000165]
[1745342125540,0.47079,90870.0,90869.0,0.04261921]
[1745342125741,0.830838,90870.0,90869.0,0.04261921]
[1745342125950,1.063738,90870.0,90869.0,0.000165]
[1745342126147,1.063738,90870.0,90867.0,0.0422446]
[1745342126346,0.1100021,90860.0,90844.0,0.36960552]
[1745342126537,0.4708021,90860.0,90845.0,0.1109]
[1745342126738,0.4708021,90860.0,90859.0,0.04257028]
[1745342127249,0.5808621,90860.0,90859.0,0.04257028]
[1745342127447,0.7308721,90860.0,90859.0,0.04257028]
[1745342127641,0.7318721,90860.0,90859.0,0.04257028]
[1745342127839,0.7400815,90860.0,90859.0,0.00165041]
[1745342128044,0.1100167,90848.0,90836.0,0.1100302]
[1745342128342,0.5600167,90848.0,90847.0,0.00779357]
[1745342128540,0.1100235,90843.0,90842.0,0.1100239]
[1745342128938,0.4158104,90845.0,90844.0,0.1100215]
[1745342129745,0.3608,90845.0,90844.0,0.1100215]
[1745342130251,0.481,90845.0,90844.0,0.1110215]
[1745342130442,0.001,90845.0,90844.0,0.1110215]
[1745342130637,0.15101,90845.0,90844.0,0.3347215]
[1745342131051,0.15101,90845.0,90844.0,0.2212215]
[1745342131446,0.2620303,90845.0,90844.0,0.09075511]
[1745342131650,0.2620303,90845.0,90844.0,0.001]
[1745342131847,0.1100215,90844.0,90843.0,0.08459707]
[1745342132046,0.2307215,90844.0,90843.0,0.08459707]
[1745342132448,0.1100252,90841.0,90840.0,0.1650382]
[1745342132653,0.1100284,90839.0,90838.0,0.1100287]
[1745342132951,0.110032,90836.0,90830.0,0.1100381]
[1745342133154,0.110032,90836.0,90804.0,0.0550345]
[1745342133155,0.3608,90831.0,90820.0,0.11005]
[1745342133449,0.1100421,90827.0,90820.0,0.04134891]
[1745342133651,0.1100421,90827.0,90822.0,0.0550241]
[1745342133850,0.3608,90823.0,90822.0,0.1100482]
[1745342134950,0.51081,90823.0,90822.0,0.1100482]
[1745342135952,0.51181,90823.0,90822.0,0.1100482]
[1745342136544,0.51281,90823.0,90822.0,0.1110482]
[1745342137751,0.51281,90823.0,90822.0,0.09728391]
[1745342139849,0.51281,90823.0,90822.0,0.11728391]
[1745342141252,0.00025,90829.0,90828.0,0.1100409]
[1745342141455,0.08949,90829.0,90828.0,0.1200409]
[1745342141655,0.08924,90829.0,90828.0,0.1200409]
[1745342141850,0.1177,90839.0,90834.0,0.1100336]
[1745342142056,0.08940509,90835.0,90834.0,0.1200336]
[1745342143047,0.08940509,90835.0,90834.0,0.2308336]
[1745342143247,0.50116509,90835.0,90834.0,0.3437336]
[1745342143649,0.59040509,90835.0,90834.0,0.3437336]
[1745342144250,0.59140509,90835.0,90834.0,0.3457336]
[1745342144567,0.59140509,90835.0,90834.0,0.3357336]
[1745342145148,0.0550169,90834.0,90825.0,0.21012172]
[1745342145356,0.3608,90827.0,90826.0,0.2303433]
[1745342145548,0.3608,90827.0,90826.0,0.2403433]
[1745342146856,0.3608,90827.0,90826.0,0.01]
[1745342147257,0.4708421,90827.0,90822.0,0.08240557]
[1745342147460,0.3454,90826.0,90825.0,0.1100445]
[1745342147770,0.3454,90826.0,90822.0,0.09628223]
[1745342148062,0.1100464,90824.0,90820.0,0.35033465]
[1745342148259,0.1100484,90822.0,90821.0,0.1100494]
[1745342148455,0.2268,90823.0,90822.0,0.1100482]
[1745342148658,0.1100465,90824.0,90823.0,0.110047]
[1745342149060,0.1100494,90821.0,90820.0,0.46038475]
[1745342149358,0.1196,90826.0,90817.0,0.00495502]
[1745342149657,0.1100603,90812.0,90801.0,0.1092]
[1745342149857,0.4708603,90812.0,90811.0,0.08684109]
[1745342150058,0.0550308,90811.0,90802.0,0.1175]
[1745342150365,0.3608,90812.0,90811.0,0.1100615]
[1745342150864,0.4728603,90812.0,90811.0,0.1100615]
[1745342151061,0.9728603,90812.0,90811.0,0.1100615]
[1745342151357,0.8628,90812.0,90811.0,0.1100615]
[1745342152452,0.1100639,90809.0,90808.0,0.118]
[1745342152755,0.4708639,90809.0,90808.0,0.02]
[1745342153356,0.4708639,90809.0,90808.0,0.1300651]
[1745342153659,0.98010932,90809.0,90808.0,0.1300651]
[1745342153851,0.98110932,90809.0,90808.0,0.1300651]
[1745342154260,0.98110932,90809.0,90808.0,0.02]
[1745342155267,1.07390932,90809.0,90808.0,0.02]
[1745342155456,0.11007,90804.0,90803.0,0.118]
[1745342155663,0.1100681,90806.0,90805.0,0.1100676]
[1745342155857,0.1100681,90806.0,90805.0,0.1200676]
[1745342156258,0.1100681,90806.0,90805.0,0.01]
[1745342156559,0.6100681,90806.0,90805.0,0.01]
[1745342156959,0.6100681,90806.0,90803.0,0.118]
[1745342157157,0.11007,90804.0,90803.0,0.22879439]
[1745342157862,0.11007,90804.0,90802.0,0.04254555]
[1745342157863,0.1100712,90803.0,90802.0,0.04254555]
[1745342158058,0.1100736,90801.0,90800.0,0.1]
[1745342158363,0.4708736,90801.0,90800.0,0.1]
[1745342158558,0.4708736,90801.0,90800.0,0.10307614]
[1745342159467,0.9708736,90801.0,90800.0,0.0920611]
[1745342160065,0.9728736,90801.0,90800.0,0.0920611]
[1745342160255,0.8628,90801.0,90800.0,0.2041611]
[1745342160456,0.8628,90801.0,90800.0,0.4330359]
[1745342160457,0.502,90801.0,90800.0,0.4330359]
[1745342160762,0.505,90801.0,90800.0,0.4330359]
[1745342161169,0.6150736,90801.0,90800.0,0.3229611]
[1745342161371,0.6120736,90801.0,90800.0,0.3229611]
[1745342161662,0.9758736,90801.0,90800.0,0.2141611]
[1745342162066,1.0887736,90801.0,90800.0,0.2141611]
[1745342162466,1.0887736,90801.0,90800.0,0.0920611]
[1745342162865,1.0887736,90801.0,90800.0,0.06452231]
[1745342163059,1.0857736,90801.0,90800.0,0.06452231]
[1745342163267,1.0877736,90801.0,90800.0,0.06452231]
[1745342163868,1.0837736,90801.0,90800.0,0.06452231]
[1745342164069,1.0877736,90801.0,90800.0,0.06452231]
[1745342164467,1.0879,90801.0,90800.0,0.02486613]
[1745342164669,1.0879,90801.0,90794.0,0.0550407]
[1745342164873,0.1195,90800.0,90795.0,0.0550404]
[1745342165076,0.1195,90800.0,90796.0,0.1087]
[1745342165370,0.1102,90799.0,90796.0,0.19950193]
[1745342165570,0.1102,90799.0,90798.0,0.1100773]
[1745342166080,0.1102,90799.0,90798.0,0.08364004]
[1745342166471,0.6102,90799.0,90798.0,0.08364004]
[1745342167077,0.49759974,90799.0,90798.0,0.09364004]
[1745342167264,0.45791462,90799.0,90798.0,0.09364004]
[1745342168068,0.10129542,90809.0,90805.0,0.0550341]
[1745342168267,0.00849542,90809.0,90808.0,0.1100651]
[1745342168474,0.00824542,90809.0,90808.0,0.1200651]
[1745342168675,0.10792,90815.0,90814.0,0.1100579]
[1745342168868,0.10792,90815.0,90814.0,0.01]
[1745342169068,0.32992,90815.0,90814.0,0.01]
[1745342169268,0.44792,90815.0,90814.0,0.006]
[1745342169770,0.44892,90815.0,90811.0,0.1100611]
[1745342169972,0.45292,90815.0,90810.0,0.2265]
[1745342170377,0.45392,90815.0,90810.0,0.1175]
[1745342170572,0.22232,90815.0,90810.0,0.1175]
[1745342170773,0.72532,90815.0,90811.0,0.1102]
[1745342170966,0.1202,90814.0,90811.0,0.1102]
[1745342171172,0.1202,90814.0,90812.0,0.2275595]
[1745342171368,0.1124,90813.0,90812.0,0.2275595]
[1745342171671,0.12058055,90813.0,90812.0,0.1175]
[1745342172374,0.62058055,90813.0,90812.0,0.2275603]
[1745342173075,0.62158055,90813.0,90812.0,0.1205]
[1745342173672,0.62258055,90813.0,90812.0,0.1235]
[1745342174072,0.62258055,90813.0,90812.0,0.09706815]
[1745342174375,0.62258055,90813.0,90812.0,0.09606815]
[1745342174779,0.62258055,90813.0,90812.0,0.07679515]
[1745342175874,0.62158055,90813.0,90812.0,0.18585545]
[1745342176076,0.62258055,90813.0,90812.0,0.18685545]
[1745342177489,0.62158055,90813.0,90812.0,0.18585545]
[1745342177684,0.62258055,90813.0,90812.0,0.18685545]
[1745342178977,0.62158055,90813.0,90812.0,0.18585545]
[1745342179283,0.62258055,90813.0,90812.0,0.17308914]
[1745342179984,0.62258055,90813.0,90812.0,0.06302884]
[1745342180195,0.62258055,90813.0,90812.0,0.005]
[1745342181075,0.62258055,90813.0,90809.0,0.0550319]
[1745342181272,0.1106,90812.0,90810.0,0.1100616]
[1745342181481,0.1106,90812.0,90811.0,0.1100615]
[1745342181880,0.1106,90812.0,90806.0,0.0550336]
[1745342182085,0.1100664,90807.0,90795.0,0.03589388]
[1745342182276,0.3608,90800.0,90796.0,0.1100791]
[1745342182477,0.1106,90799.0,90796.0,0.01]
[1745342182681,0.1106,90799.0,90795.0,0.05333602]
[1745342182884,0.1106,90799.0,90795.0,0.1100807]
[1745342183084,0.1106,90799.0,90792.0,0.0550421]
[1745342183293,0.1106,90799.0,90797.0,0.1100779]
[1745342183785,0.1116,90799.0,90797.0,0.1100779]
[1745342183986,0.5,90798.0,90797.0,0.1100779]
[1745342184179,0.6100773,90798.0,90795.0,0.0550402]
[1745342184380,0.1139,90797.0,90795.0,0.0950402]
[1745342184580,0.2239788,90797.0,90795.0,0.0950402]
[1745342184777,0.1139,90797.0,90795.0,0.04]
[1745342185175,0.1139,90797.0,90796.0,0.1100797]
[1745342185790,0.223979,90797.0,90795.0,0.1100799]
[1745342185986,0.223979,90797.0,90795.0,0.1200799]
[1745342186181,0.1139,90797.0,90796.0,0.1100797]
[1745342186384,0.6159,90797.0,90796.0,0.1100797]
[1745342186887,0.6169,90797.0,90796.0,0.1100797]
[1745342188089,0.7269789,90797.0,90795.0,0.2184805]
[1745342188585,0.7259789,90797.0,90796.0,0.1100797]
[1745342188785,0.7269789,90797.0,90796.0,0.1100797]
[1745342189286,0.7259789,90797.0,90796.0,0.1100797]
[1745342189688,0.1100797,90796.0,90795.0,0.1084]
[1745342190078,0.2238797,90796.0,90795.0,0.19204385]
[1745342190791,0.1138,90796.0,90795.0,0.19204385]
[1745342191087,0.7238797,90796.0,90795.0,0.19204385]
[1745342191478,0.7238797,90796.0,90795.0,0.1100809]
[1745342191984,0.7248797,90796.0,90795.0,0.1100809]
[1745342192287,0.1100821,90794.0,90793.0,0.0550416]
[1745342192482,0.1171,90795.0,90794.0,0.1100821]
[1745342192683,0.1171,90795.0,90794.0,0.1200821]
[1745342192885,0.2253,90795.0,90794.0,0.1200821]
[1745342193280,0.2253,90795.0,90794.0,0.10080509]
[1745342193485,0.2253,90795.0,90794.0,0.09980509]
[1745342193991,0.2253,90795.0,90794.0,0.01]
[1745342193992,0.40611741,90795.0,90794.0,0.01]
[1745342194287,0.90611741,90795.0,90794.0,0.01]
[1745342194593,1.01901741,90795.0,90794.0,0.01]
[1745342194792,0.90893651,90795.0,90794.0,0.01]
[1745342195088,1.02001741,90795.0,90794.0,0.011]
[1745342195278,0.90993651,90795.0,90794.0,0.011]
[1745342195483,0.68563651,90795.0,90794.0,0.011]
[1745342195685,0.79471741,90795.0,90794.0,0.01]
[1745342195878,0.79471741,90795.0,90794.0,0.011]
[1745342196082,0.79571741,90795.0,90794.0,0.011]
[1745342196286,0.90795741,90795.0,90794.0,0.011]
[1745342196487,0.8372209,90795.0,90794.0,0.011]
[1745342197095,0.72714,90795.0,90794.0,0.1210821]
[1745342197393,0.72714,90795.0,90794.0,0.011]
[1745342197780,0.72714,90795.0,90794.0,0.2352]